bitfinex-derivatives/quotes_SOLF0:USTF0_20260115
["timestamp","ask_amount","ask_price","bid_price","bid_amount"]
[1768438568175,2.99056502,145.82,145.72,3.18967441]
[1768438568479,2.99056502,145.81,145.72,3.18967441]
[1768438569078,0.05026242,145.78,145.75,0.04464655]
[1768438570584,6.22456242,145.78,145.73,3.18967441]
[1768438571586,2.99056502,145.75,145.69,3.18967441]
[1768438572078,9.16616502,145.75,145.69,3.18967441]
[1768438572684,0.05044528,145.73,145.69,3.18967441]
[1768438573689,0.05044528,145.73,145.7,0.04480461]
[1768438589705,3.1094392,145.73,145.67,9.25437874]
[1768438590602,3.1094392,145.73,145.69,0.0439357]
[1768438598913,3.05899392,145.75,145.69,3.11951444]
[1768438599911,3.05899392,145.75,145.69,9.29751444]
[1768438600208,0.048954,145.73,145.69,9.29751444]
[1768438600409,3.05899392,145.75,145.69,9.29751444]
[1768438603914,0.04861219,145.73,145.69,9.29751444]
[1768438610122,0.04861219,145.73,145.7,6.1776]
[1768438610325,3.05899392,145.78,145.71,3.07557874]
[1768438611228,10.99114393,145.8,145.71,3.07557874]
[1768438611423,0.05161668,145.76,145.73,0.04695521]
[1768438612321,3.12945908,145.79,145.73,9.45948495]
[1768438614528,0.04574326,145.77,145.73,9.45948495]
[1768438617524,0.04574326,145.77,145.74,6.1758]
[1768438620636,3.17520234,145.77,145.73,0.04695521]
[1768438623238,0.04574326,145.77,145.73,3.28318495]
[1768438623438,0.04574326,145.77,145.73,4.9711698]
[1768438624338,0.04574326,145.77,145.73,11.1475698]
[1768438624540,10.99074393,145.81,145.74,3.23622974]
[1768438624939,3.12945908,145.8,145.74,3.23622974]
[1768438625840,3.12945908,145.82,145.76,0.04442163]
[1768438626832,0.04404015,145.8,145.76,0.04442163]
[1768438630837,0.04404015,145.8,145.76,6.21942163]
[1768438632044,0.04404015,145.8,145.76,9.45565137]
[1768438632338,3.12945908,145.82,145.76,9.45565137]
[1768438634044,3.12945908,145.82,145.77,3.23622974]
[1768438635144,3.12945908,145.82,145.77,9.41082974]
[1768438637757,9.30115908,145.84,145.77,9.41082974]
[1768438637956,9.30115908,145.84,145.79,0.05069495]
[1768438639055,3.12945908,145.84,145.79,0.05069495]
[1768438639645,85.85744393,145.86,145.79,3.28692469]
[1768438639849,84.16945908,145.86,145.79,3.28692469]
[1768438640252,3.12945908,145.85,145.79,3.28692469]
[1768438641455,3.12945908,145.85,145.79,9.46072469]
[1768438643051,3.12945908,145.85,145.8,6.1734]
[1768438643256,81.04,145.86,145.8,3.12070082]
[1768438644059,4.85131218,145.87,145.81,6.1729]
[1768438644248,3.16332733,145.86,145.83,0.04493022]
[1768438650454,7.3619361,145.92,145.84,6.1716]
[1768438650659,1.68798485,145.91,145.83,3.12070082]
[1768438650849,1.68798485,145.91,145.81,4.80868567]
[1768438651161,1.68798485,145.89,145.81,4.80868567]
[1768438651753,1.68798485,145.89,145.84,0.0492494]
[1768438652660,3.16332733,145.88,145.84,0.0492494]
[1768438658161,3.20778884,145.87,145.81,9.29350082]
[1768438658870,3.20778884,145.87,145.81,3.12070082]
[1768438659270,3.16332733,145.86,145.79,9.29430082]
[1768438659859,9.33422733,145.86,145.79,9.29430082]
[1768438660262,0.04784118,145.84,145.81,0.04601171]
[1768438667477,3.21116851,145.84,145.81,0.04601171]
[1768438672478,3.21116851,145.84,145.77,3.10939813]
[1768438672778,3.21116851,145.84,145.76,6.1748]
[1768438672779,3.23365738,145.83,145.76,6.1748]
[1768438673483,0.04613463,145.81,145.78,0.04649323]
[1768438677195,3.27979201,145.81,145.78,0.04649323]
[1768438680196,9.40495738,145.85,145.78,3.15589136]
[1768438680399,3.23365738,145.86,145.78,3.10939813]
[1768438681304,0.04851659,145.83,145.81,0.04725373]
[1768438681593,3.23365738,145.86,145.81,0.04725373]
[1768438682098,3.23365738,145.88,145.81,9.32965186]
[1768438682298,3.23365738,145.88,145.82,3.10939813]
[1768438684797,3.23365738,145.88,145.82,9.28189813]
[1768438685298,0.04651502,145.86,145.82,9.28189813]
[1768438688498,0.04651502,145.86,145.83,6.1721]
[1768438689193,3.23365738,145.88,145.83,6.1721]
[1768438689596,3.23365738,145.91,145.84,6.1717]
[1768438690194,3.23365738,145.91,145.86,0.04708148]
[1768438691796,9.40255738,145.91,145.86,0.04708148]
[1768438692100,3.23365738,145.9,145.86,0.04708148]
[1768438692698,0.05027613,145.89,145.86,0.04708148]
[1768438692901,3.28393351,145.89,145.84,6.1717]
[1768438693990,3.28393351,145.89,145.85,0.04777674]
[1768438694398,0.05027613,145.89,145.85,0.04777674]
[1768438697100,3.28393351,145.89,145.82,9.28189813]
[1768438697901,9.45363351,145.89,145.82,9.28189813]
[1768438698295,9.45363351,145.89,145.84,0.05107368]
[1768438699997,6.1701,145.88,145.84,0.05107368]
[1768438700194,9.40375738,145.88,145.84,0.05107368]
[1768438705300,3.23365738,145.88,145.84,0.05107368]
[1768438707909,3.23365738,145.88,145.8,3.21668877]
[1768438708811,3.23455198,145.86,145.8,3.21668877]
[1768438709007,3.27824047,145.86,145.8,3.21668877]
[1768438709897,3.27824047,145.86,145.82,0.05024579]
[1768438710098,3.27824047,145.86,145.8,3.21668877]
[1768438710601,0.04368849,145.86,145.8,3.21668877]
[1768438710996,3.23455198,145.9,145.81,3.21668877]
[1768438711202,3.23455198,145.9,145.82,3.21668877]
[1768438712209,0.04516041,145.87,145.85,0.05102502]
[1768438714010,3.23455198,145.9,145.85,0.05102502]
[1768438715113,0.0488041,145.89,145.85,0.05102502]
[1768438719514,0.0488041,145.89,145.85,3.26771379]
[1768438730024,0.0488041,145.89,145.85,0.05102502]
[1768438734121,81.0,145.95,145.87,3.14611172]
[1768438734324,1.68445996,145.96,145.88,3.14611172]
[1768438734524,8.64619579,145.95,145.88,3.14611172]
[1768438734728,3.21642909,145.95,145.88,3.14611172]
[1768438735115,0.05009087,145.93,145.9,0.04436859]
[1768438745529,84.19642909,145.95,145.9,3.19048031]
[1768438745729,4.90088905,145.97,145.9,3.19048031]
[1768438746028,80.98,145.96,145.9,3.19048031]
[1768438746636,0.04827045,145.94,145.9,3.19048031]
[1768438747336,80.98,145.96,145.9,3.19048031]
[1768438747638,85.88088905,145.97,145.9,3.19048031]
[1768438749336,85.88088905,145.97,145.91,3.14611172]
[1768438750841,0.04736711,145.95,145.9,3.19048031]
[1768438752837,3.21642909,145.98,145.92,3.14611172]
[1768438753042,84.17642909,145.98,145.92,3.14611172]
[1768438753939,84.17642909,145.98,145.94,0.04580035]
[1768438754135,0.02683382,145.96,145.94,0.04580035]
[1768438754342,80.96,145.98,145.94,0.04580035]
[1768438754533,3.21642909,146.0,145.94,0.04580035]
[1768438754729,80.96,145.99,145.94,0.04580035]
[1768438755131,3.21642909,146.0,145.94,0.04580035]
[1768438755337,80.96,145.99,145.94,0.04580035]
[1768438758546,85.86088905,145.99,145.94,0.04580035]
[1768438759149,92.02628905,145.99,145.94,0.04580035]
[1768438760340,80.96,145.99,145.94,3.19191207]
[1768438760533,80.96,146.0,145.94,3.19191207]
[1768438761037,82.64445996,146.0,145.94,3.19191207]
[1768438761233,85.91826981,146.0,145.94,3.19191207]
[1768438764943,4.95826981,146.0,145.94,3.19191207]
[1768438765143,80.94,145.99,145.94,3.19191207]
[1768438765746,4.95826981,146.0,145.94,3.19191207]
[1768438766047,80.94,145.99,145.94,3.19191207]
[1768438766241,80.94,145.98,145.94,0.04580035]
[1768438769941,3.30006449,145.99,145.94,0.04580035]
[1768438770146,84.24006449,145.99,145.94,0.04580035]
[1768438770942,3.30006449,146.01,145.94,3.16592403]
[1768438771142,84.24006449,146.04,145.96,4.80458364]
[1768438771346,3.30006449,146.03,145.96,4.80458364]
[1768438771540,3.30006449,146.03,145.99,0.05034311]
[1768438772344,3.30006449,146.01,145.94,9.28732368]
[1768438773347,3.30006449,146.01,145.96,0.05077174]
[1768438774848,3.30006449,146.06,145.97,9.28632368]
[1768438775044,3.30006449,146.05,146.0,0.04469013]
[1768438776249,3.30006449,146.07,146.0,3.16481381]
[1768438777044,1.68445996,146.04,146.0,0.04469013]
[1768438778345,3.30006449,146.05,146.0,0.04469013]
[1768438783156,3.30006449,146.05,146.0,6.20959013]
[1768438787162,80.94,146.08,146.0,0.04469013]
[1768438787163,4.98452445,146.04,146.0,0.04469013]
[1768438787364,3.30006449,146.03,146.0,0.04469013]
[1768438787564,3.30006449,146.05,146.0,0.04469013]
[1768438789562,2.62786009,146.06,146.0,0.04469013]
[1768438789964,5.92792458,146.06,146.0,0.04469013]
[1768438790162,3.30006449,146.06,146.0,3.16481381]
[1768438790768,3.30006449,146.06,146.0,9.32971381]
[1768438791662,5.92792458,146.06,146.0,9.32971381]
[1768438792962,3.30006449,146.06,146.0,9.32971381]
[1768438793569,0.05034311,146.04,146.0,9.32971381]
[1768438794165,0.05034311,146.04,146.0,3.16481381]
[1768438794463,83.99401271,146.08,146.0,3.16481381]
[1768438794669,2.62786009,146.11,146.0,3.16481381]
[1768438794670,3.05401271,146.1,146.04,6.1631]
[1768438795370,3.05401271,146.1,146.06,0.0481059]
[1768438797572,3.05401271,146.1,146.03,6.1635]
[1768438797867,2.62786009,146.09,146.03,6.1635]
[1768438798070,3.05401271,146.08,146.03,6.1635]
[1768438798573,0.0481059,146.07,146.04,0.04834291]
[1768438800371,3.05401271,146.11,146.04,6.21154291]
[1768438800573,3.05401271,146.11,146.04,9.1907204]
[1768438800871,3.05401271,146.11,146.05,2.97917749]
[1768438801472,3.05401271,146.11,146.06,6.1623]
[1768438801767,3.05401271,146.11,146.07,0.04362308]
[1768438802163,3.05401271,146.14,146.07,0.04362308]
[1768438802372,3.05401271,146.14,146.07,3.02280057]
[1768438802772,3.05401271,146.17,146.07,3.02280057]
[1768438803078,3.05401271,146.17,146.11,0.05230984]
[1768438803969,3.05401271,146.19,146.11,3.03148733]
[1768438804170,3.05401271,146.19,146.14,0.04625795]
[1768438804375,3.05401271,146.23,146.14,3.02543544]
[1768438804674,3.05401271,146.23,146.17,0.0519536]
[1768438805371,3.05401271,146.22,146.17,0.0519536]
[1768438816377,83.89401271,146.24,146.17,3.03113109]
[1768438816576,3.05401271,146.24,146.19,0.04827358]
[1768438819483,83.89401271,146.26,146.19,6.20517358]
[1768438819784,83.89401271,146.26,146.19,9.18435107]
[1768438820877,3.0126324,146.25,146.19,0.04827358]
[1768438822879,3.20229082,146.24,146.19,0.04827358]
[1768438824684,84.04229082,146.26,146.19,0.04827358]
[1768438824889,3.20229082,146.26,146.19,6.20517358]
[1768438825284,3.20229082,146.26,146.2,6.1563]
[1768438825485,3.20229082,146.26,146.19,3.33048764]
[1768438825790,84.02229082,146.28,146.19,3.33048764]
[1768438825983,84.02229082,146.28,146.19,3.28221406]
[1768438826190,3.20229082,146.27,146.22,0.04613853]
[1768438826782,3.20229082,146.3,146.22,3.32835259]
[1768438827891,3.20229082,146.32,146.22,3.32835259]
[1768438828085,3.20229082,146.32,146.26,0.04398241]
[1768438830396,3.20229082,146.34,146.26,3.32619647]
[1768438830595,3.20229082,146.31,146.22,3.28221406]
[1768438831686,0.04360947,146.28,146.25,0.04713932]
[1768438836095,3.20229082,146.31,146.25,6.20143932]
[1768438839098,1.18982495,146.36,146.26,3.28221406]
[1768438839403,2.6252341,146.37,146.3,0.04712063]
[1768438839796,2.6252341,146.39,146.3,0.04712063]
[1768438840101,83.4052341,146.39,146.33,0.05072527]
[1768438841005,6.149,146.38,146.33,0.05072527]
[1768438841193,3.20229082,146.37,146.33,0.05072527]
[1768438842198,3.20229082,146.39,146.33,0.05072527]
[1768438843904,3.20229082,146.39,146.33,6.20172527]
[1768438844898,3.20229082,146.39,146.33,0.05072527]
[1768438845992,3.20229082,146.39,146.33,9.48393933]
[1768438846398,3.20229082,146.43,146.34,3.28221406]
[1768438846604,3.20229082,146.43,146.37,6.20013725]
[1768438846800,3.20229082,146.45,146.37,9.48235131]
[1768438847004,3.20229082,146.45,146.4,0.04534085]
[1768438847606,3.20229082,146.45,146.37,3.28221406]
[1768438847607,0.04571379,146.44,146.37,3.28221406]
[1768438848705,9.39460461,146.44,146.39,0.05204966]
[1768438848899,9.39460461,146.44,146.37,3.28221406]
[1768438849302,1.67279373,146.43,146.37,3.28221406]
[1768438849910,1.67279373,146.43,146.39,0.04442954]
[1768438851011,10.93514221,146.43,146.34,4.78816004]
[1768438851214,3.11534848,146.42,146.34,4.78816004]
[1768438851506,4.78814221,146.41,146.34,3.11536631]
[1768438851709,3.11534848,146.4,146.32,3.11536631]
[1768438852209,0.04640441,146.37,146.35,0.04453745]
[1768438853302,0.04640441,146.37,146.3,6.1521]
[1768438853608,0.04640441,146.37,146.3,9.26746631]
[1768438854002,0.04640441,146.37,146.3,3.11536631]
[1768438854405,0.04640441,146.37,146.32,0.05028155]
[1768438856110,4.78814221,146.36,146.3,3.11536631]
[1768438856814,3.11534848,146.35,146.27,3.11536631]
[1768438857205,0.04316804,146.32,146.3,0.04819635]
[1768438858807,0.04316804,146.32,146.25,3.11536631]
[1768438859013,3.11534848,146.33,146.25,3.11536631]
[1768438860009,0.04599204,146.3,146.28,0.05060075]
[1768438860613,0.04599204,146.3,146.25,3.11536631]
[1768438861704,0.04599204,146.3,146.26,0.04766668]
[1768438863315,3.16134052,146.3,146.26,0.04766668]
[1768438863615,3.11534848,146.29,146.22,3.11536631]
[1768438864307,3.11534848,146.29,146.2,1.67279373]
[1768438864512,3.11534848,146.27,146.19,9.27196631]
[1768438864713,0.04693624,146.24,146.19,9.27196631]
[1768438864913,0.04693624,146.24,146.22,0.04530147]
[1768438865413,0.04693624,146.24,146.15,4.78816004]
[1768438865611,3.11534848,146.25,146.16,3.11536631]
[1768438866311,0.05163912,146.22,146.16,3.11536631]
[1768438866519,0.05163912,146.22,146.19,0.04683733]
[1768438869415,4.78814221,146.26,146.19,0.04683733]
[1768438870623,0.05089681,146.24,146.19,0.04683733]
[1768438874822,3.11534848,146.3,146.2,3.11536631]
[1768438875029,3.11534848,146.3,146.22,3.11536631]
[1768438875220,3.11534848,146.3,146.23,4.78816004]
[1768438876319,0.04672663,146.28,146.25,0.05224553]
[1768438878526,0.04672663,146.28,146.22,6.1554]
[1768438878724,0.04672663,146.28,146.2,4.78816004]
[1768438878725,3.16207511,146.28,146.2,4.78816004]
[1768438878920,9.31537511,146.28,146.2,3.11536631]
[1768438879132,9.31537511,146.28,146.19,1.67279373]
[1768438879133,1.67279373,146.27,146.19,1.67279373]
[1768438879329,4.78814221,146.27,146.17,4.78816004]
[1768438879535,0.04893392,146.23,146.21,0.04368515]
[1768438880935,4.78814221,146.27,146.21,0.04368515]
[1768438881734,0.04393969,146.25,146.21,0.04368515]
[1768438885634,4.73632776,146.25,146.18,3.14831278]
[1768438885831,3.01959434,146.24,146.15,4.82110651]
[1768438886033,3.01959434,146.23,146.15,4.82110651]
[1768438886234,4.69238807,146.23,146.15,4.82110651]
[1768438886629,0.04692528,146.2,146.18,0.05070642]
[1768438887841,0.04692528,146.2,146.15,3.14831278]
[1768438888930,0.04692528,146.2,146.16,0.04663545]
[1768438897951,0.04692528,146.2,146.16,6.20473545]
[1768438898151,3.01959434,146.23,146.16,6.20473545]
[1768438899154,0.05120282,146.21,146.16,6.20473545]
[1768438900851,3.01959434,146.23,146.17,6.1577]
[1768438901953,0.04649268,146.21,146.17,6.1577]
[1768438902747,3.01959434,146.23,146.17,6.1577]
[1768438902949,1.67279373,146.24,146.18,6.1573]
[1768438903150,3.01959434,146.25,146.18,3.14831278]
[1768438903757,3.01959434,146.25,146.2,6.1565]
[1768438903954,1.67279373,146.26,146.2,6.20870635]
[1768438904758,4.69238807,146.27,146.21,6.156]
[1768438905958,4.69238807,146.27,146.22,6.1556]
[1768438906153,0.04629554,146.26,146.23,0.0469018]
[1768438918667,0.04629554,146.26,146.23,3.23958116]
[1768438918867,3.20950552,146.29,146.23,3.23958116]
[1768438919974,3.20950552,146.31,146.24,3.19267936]
[1768438921074,3.20950552,146.31,146.26,0.04850883]
[1768438921574,0.04803448,146.3,146.26,0.04850883]
[1768438923180,3.25754,146.3,146.26,0.04850883]
[1768438923579,3.20950552,146.28,146.19,3.19267936]
[1768438923777,3.20950552,146.27,146.19,3.19267936]
[1768438924781,0.04553087,146.24,146.22,0.04523619]
[1768438925879,3.20950552,146.32,146.25,3.19267936]
[1768438926087,3.20950552,146.34,146.25,3.19267936]
[1768438926389,3.20950552,146.34,146.26,9.34647936]
[1768438926873,0.04535705,146.31,146.29,0.04512615]
[1768438927477,0.04535705,146.31,146.26,3.19267936]
[1768438927880,3.25486257,146.31,146.24,6.1545]
[1768438928078,3.25486257,146.31,146.24,9.34717936]
[1768438928577,3.25486257,146.31,146.26,0.04370422]
[1768438935586,3.20950552,146.3,146.22,3.19267936]
[1768438936581,0.04543556,146.27,146.25,0.05155575]
[1768438937687,3.25494108,146.27,146.2,3.19267936]
[1768438937994,3.20950552,146.3,146.2,3.19267936]
[1768438938790,3.25997316,146.26,146.19,3.19267936]
[1768438941389,0.05046764,146.26,146.21,0.05240727]
[1768438941781,3.09941124,146.26,146.21,0.05240727]
[1768438948697,3.0489436,146.28,146.22,6.1554]
[1768438949800,0.04420964,146.26,146.24,0.04985792]
[1768438950999,3.0489436,146.28,146.24,0.04985792]
[1768438951197,3.0489436,146.3,146.24,0.04985792]
[1768438951397,3.0489436,146.3,146.24,3.04145145]
[1768438952099,0.0453679,146.28,146.24,3.04145145]
[1768438953301,3.0943115,146.28,146.24,0.04985792]
[1768438955400,0.0453679,146.28,146.24,0.04985792]
[1768438955897,3.0943115,146.28,146.24,0.04985792]
[1768438956101,3.0943115,146.28,146.2,2.99159353]
[1768438956801,3.0943115,146.28,146.22,6.1557]
[1768438957303,3.0943115,146.28,146.24,0.0433334]
[1768438960107,0.0453679,146.28,146.24,3.03492693]
[1768438960294,3.0489436,146.32,146.24,3.03492693]
[1768438960906,3.0489436,146.32,146.26,6.1539]
[1768438961500,0.04317582,146.3,146.28,0.0513541]
[1768438963209,3.0489436,146.34,146.28,0.0513541]
[1768438964209,0.04879835,146.32,146.28,0.0513541]
[1768438966002,3.0489436,146.33,146.28,0.0513541]
[1768438966208,3.0489436,146.38,146.28,3.04294763]
[1768438966501,83.8289436,146.4,146.29,5.61048652]
[1768438966706,3.0489436,146.39,146.3,2.99159353]
[1768438967108,80.78,146.4,146.29,2.61889299]
[1768438967109,80.78,146.4,146.33,3.04010655]
[1768438967310,3.0489436,146.42,146.33,3.04010655]
[1768438967607,3.0489436,146.42,146.33,2.99159353]
[1768438967805,3.0489436,146.42,146.34,9.14219353]
[1768438968006,3.0489436,146.42,146.34,2.99159353]
[1768438968214,0.04654981,146.39,146.37,0.04368497]
[1768438970804,0.04654981,146.39,146.32,6.1512]
[1768438971108,0.04654981,146.39,146.33,3.19445076]
[1768438971510,0.04654981,146.39,146.34,3.19445076]
[1768438971907,3.30339101,146.43,146.35,3.24068501]
[1768438972210,3.30339101,146.43,146.36,3.19445076]
[1768438972920,0.04374247,146.41,146.38,0.04358105]
[1768438980210,3.34713348,146.41,146.34,3.19445076]
[1768438981304,3.34713348,146.41,146.36,0.04743213]
[1768438982814,0.04374247,146.41,146.36,3.24188289]
[1768438984324,0.04374247,146.41,146.36,9.39158289]
[1768438984821,0.04374247,146.41,146.37,3.19445076]
[1768438985021,3.30339101,146.43,146.37,9.34375076]
[1768438986022,1.6726539,146.44,146.38,9.34335076]
[1768438986226,0.04916373,146.42,146.4,0.04585234]
[1768438986414,91.84164491,146.46,146.4,0.04585234]
[1768438986614,1.6726539,146.45,146.4,0.04585234]
[1768438987315,90.16899101,146.46,146.4,0.04585234]
[1768438987512,0.04327671,146.44,146.4,0.04585234]
[1768438987713,293.3411,146.61,146.42,3.19445076]
[1768438987714,3.30339101,146.49,146.42,3.19445076]
[1768438988720,3.30339101,146.49,146.44,0.04974948]
[1768438989327,3.30339101,146.45,146.37,3.19445076]
[1768438990323,0.05250578,146.42,146.4,0.04896698]
[1768438991313,3.30339101,146.45,146.4,0.04896698]
[1768438991514,3.30339101,146.48,146.4,3.24341774]
[1768438991719,1.6726539,146.48,146.4,3.19445076]
[1768438991914,1.6726539,146.5,146.42,3.19445076]
[1768438992520,1.6726539,146.5,146.45,0.05113279]
[1768438993121,4.97604491,146.51,146.45,0.05113279]
[1768438993324,3.30339101,146.51,146.45,0.05113279]
[1768438993630,4.97604491,146.51,146.45,0.05113279]
[1768438994428,1.6726539,146.49,146.45,0.05113279]
[1768438994928,11.11964491,146.51,146.45,0.05113279]
[1768438995425,1.6726539,146.5,146.45,0.05113279]
[1768438995933,82.3726539,146.52,146.45,3.24558355]
[1768438996332,80.7,146.52,146.45,3.24558355]
[1768438997228,84.00339101,146.52,146.45,3.24558355]
[1768438999031,3.30339101,146.51,146.45,0.05113279]
[1768439004937,3.30339101,146.51,146.45,6.19703279]
[1768439007335,3.30339101,146.51,146.45,0.05113279]
[1768439007544,4.71381396,146.5,146.45,0.05113279]
[1768439007739,4.71381396,146.5,146.46,0.05232408]
[1768439008436,1.6726539,146.51,146.46,0.05232408]
[1768439008638,1.6726539,146.52,146.46,0.05232408]
[1768439008940,4.71381396,146.52,146.46,0.05232408]
[1768439009142,4.71381396,146.52,146.46,6.19782408]
[1768439010538,4.71381396,146.52,146.46,0.05232408]
[1768439013446,10.85691396,146.52,146.46,0.05232408]
[1768439014151,1.6726539,146.5,146.46,0.05232408]
[1768439016652,3.04116006,146.49,146.42,3.09971318]
[1768439016951,4.71381396,146.48,146.4,3.09971318]
[1768439017654,0.0435543,146.45,146.43,0.05232128]
[1768439018650,0.0435543,146.45,146.4,3.09971318]
[1768439018854,0.0435543,146.45,146.38,3.09971318]
[1768439019744,0.0435543,146.45,146.4,0.04605099]
[1768439020251,3.08471436,146.45,146.4,0.04605099]
[1768439020647,3.04116006,146.43,146.35,3.09971318]
[1768439021054,9.18806006,146.43,146.35,3.09971318]
[1768439021747,0.0445057,146.4,146.38,0.05166277]
[1768439022756,3.08566576,146.4,146.32,3.09971318]
[1768439023248,3.08566576,146.4,146.33,3.09971318]
[1768439023752,0.0445057,146.4,146.35,0.04922042]
[1768439024158,4.71381396,146.38,146.3,3.09971318]
[1768439024552,4.71381396,146.38,146.31,6.1518]
[1768439024849,4.71381396,146.38,146.31,9.25151318]
[1768439025253,3.04116006,146.38,146.33,0.0468727]
[1768439025557,0.05084481,146.37,146.33,0.0468727]
[1768439025952,3.09200487,146.37,146.33,0.0468727]
[1768439026147,4.76465877,146.37,146.33,0.0468727]
[1768439026346,4.76465877,146.37,146.29,4.77236708]
[1768439027563,4.76465877,146.37,146.32,0.04474923]
[1768439029459,3.04116006,146.36,146.32,0.04474923]
[1768439033560,3.04116006,146.36,146.29,3.09971318]
[1768439034261,3.04116006,146.36,146.27,3.05522024]
[1768439034450,0.05123235,146.33,146.3,0.0485947]
[1768439035251,3.05354462,146.38,146.3,3.10381494]
[1768439035454,3.05354462,146.38,146.3,3.05522024]
[1768439036356,0.05182757,146.35,146.33,0.04504604]
[1768439038662,3.05354462,146.38,146.33,0.04504604]
[1768439038862,5.66949512,146.41,146.33,3.10026628]
[1768439039164,3.05354462,146.41,146.33,3.10026628]
[1768439039660,0.04568335,146.38,146.33,3.10026628]
[1768439040762,0.04568335,146.38,146.33,9.25126628]
[1768439041063,0.04568335,146.38,146.34,3.05522024]
[1768439041463,3.05354462,146.43,146.34,3.05522024]
[1768439042064,3.05354462,146.43,146.36,6.1496]
[1768439042363,3.05354462,146.43,146.36,9.20482024]
[1768439042568,0.04640419,146.41,146.38,0.04786759]
[1768439045661,3.09994881,146.41,146.38,0.04786759]
[1768439045959,3.09994881,146.41,146.32,3.05522024]
[1768439046162,3.05354462,146.41,146.32,3.05522024]
[1768439046569,3.05354462,146.41,146.33,6.151]
[1768439046763,0.04838298,146.38,146.33,6.151]
[1768439047066,0.04838298,146.38,146.33,9.20622024]
[1768439047868,0.04838298,146.38,146.34,0.04555783]
[1768439049170,0.04838298,146.38,146.34,6.19615783]
[1768439051675,0.04838298,146.38,146.34,0.04555783]
[1768439052971,3.1019276,146.38,146.31,3.05522024]
[1768439053168,3.05354462,146.38,146.31,3.05522024]
[1768439053874,3.05354462,146.38,146.31,9.20702024]
[1768439054074,0.04578233,146.36,146.33,0.05000698]
[1768439059778,3.05354462,146.35,146.29,6.1524]
[1768439060470,3.05354462,146.35,146.3,6.1523]
[1768439060671,3.28680895,146.38,146.3,3.22815698]
[1768439060877,0.04443484,146.35,146.33,0.05252569]
[1768439069383,11.94214099,146.41,146.33,3.14726397]
[1768439069581,3.17809049,146.4,146.33,3.09473828]
[1768439070479,0.0478405,146.38,146.35,0.04541276]
[1768439075787,3.17809049,146.46,146.38,3.09473828]
[1768439076388,2.6159505,146.49,146.38,3.09473828]
[1768439076584,3.17809049,146.48,146.38,3.09473828]
[1768439076787,0.04616656,146.44,146.42,0.04804782]
[1768439077176,3.17809049,146.48,146.42,0.04804782]
[1768439077784,3.17809049,146.48,146.42,3.1427861]
[1768439078283,0.05201787,146.46,146.42,3.1427861]
[1768439078480,3.17809049,146.5,146.42,3.1427861]
[1768439078680,3.17809049,146.5,146.42,3.09473828]
[1768439079589,3.17809049,146.5,146.45,0.05035335]
[1768439080893,0.05114997,146.49,146.45,0.05035335]
[1768439081094,3.22924046,146.49,146.42,3.09473828]
[1768439082291,3.22924046,146.49,146.44,0.04418796]
[1768439084996,3.17809049,146.48,146.39,9.24293828]
[1768439085392,3.17809049,146.48,146.39,3.09473828]
[1768439085598,3.17809049,146.48,146.4,6.148]
[1768439086099,0.04655134,146.45,146.43,0.04831072]
[1768439093200,3.28327835,146.49,146.43,3.34376368]
[1768439093705,3.28327835,146.49,146.43,0.04831072]
[1768439094095,9.42767835,146.49,146.43,0.04831072]
[1768439094300,3.28327835,146.48,146.43,0.04831072]
[1768439094500,3.3341847,146.47,146.43,0.04831072]
[1768439095707,3.3341847,146.47,146.39,3.29545296]
[1768439095898,4.95498018,146.46,146.39,3.29545296]
[1768439096099,3.28327835,146.45,146.39,3.29545296]
[1768439096304,3.28327835,146.45,146.37,4.96715479]
[1768439096502,3.28327835,146.45,146.37,3.29545296]
[1768439096901,0.04374721,146.42,146.4,0.04547899]
[1768439103512,3.28327835,146.45,146.4,0.04547899]
[1768439104521,0.04719653,146.44,146.4,0.04547899]
[1768439105006,1.67170183,146.46,146.4,3.34093195]
[1768439105211,3.28327835,146.47,146.41,3.29545296]
[1768439105212,4.95498018,146.47,146.41,3.29545296]
[1768439105416,1.67170183,146.48,146.41,3.29545296]
[1768439105617,3.28327835,146.49,146.41,3.29545296]
[1768439105817,4.95498018,146.49,146.41,3.29545296]
[1768439106011,4.95498018,146.49,146.42,3.29545296]
[1768439106217,4.95498018,146.49,146.44,0.04593564]
[1768439107114,3.28327835,146.49,146.44,0.04593564]
[1768439107717,0.04370488,146.48,146.44,0.04593564]
[1768439112530,0.04370488,146.48,146.44,3.3413886]
[1768439112928,3.28327835,146.51,146.44,3.3413886]
[1768439113319,1.67170183,146.51,146.44,3.3413886]
[1768439113524,3.28327835,146.5,146.44,3.3413886]
[1768439113826,3.28327835,146.5,146.44,9.4877886]
[1768439114027,0.05152864,146.48,146.44,9.4877886]
[1768439119141,3.28327835,146.52,146.46,6.1455]
[1768439119331,3.28327835,146.51,146.45,3.29545296]
[1768439119641,3.28327835,146.51,146.43,4.96715479]
[1768439119642,4.95498018,146.51,146.43,4.96715479]
[1768439119841,4.95498018,146.51,146.44,3.29545296]
[1768439120234,0.04321055,146.49,146.46,0.0441115]
[1768439120641,3.22099052,146.49,146.46,0.0441115]
[1768439121344,3.17777997,146.48,146.41,3.16035515]
[1768439121842,1.67170183,146.49,146.41,3.16035515]